fUST/lending_fUST_20250623
["ID","MTS","AMOUNT","RATE_DAILY","PERIOD"]
[367153905,1750675853801,-151.0,0.00022438,2]
[367153906,1750675853812,-151.0,0.00022438,2]
[367153907,1750675853821,-151.0,0.00022438,2]
[367153908,1750675853832,-151.0,0.00022438,2]
[367153909,1750675853842,-151.0,0.00022438,2]
[367153910,1750675853852,-186.49757628,0.00022438,2]
[367153911,1750675853862,-151.0,0.00022438,2]
[367153912,1750675853871,-151.0,0.00022438,2]
[367153913,1750675853881,-151.0,0.00022438,2]
[367153914,1750675853890,-288.5477242,0.00022459,2]
[367153915,1750675853900,-23708.7810267,0.0002246,2]
[367153916,1750675853909,-394.29574092,0.00022465,2]
[367153917,1750675853918,-636.33,0.00022465,2]
[367153918,1750675853927,-636.33,0.00022465,2]
[367153919,1750675853936,-460.0,0.00022465,2]
[367153920,1750675853945,-522.8,0.00022465,2]
[367153921,1750675853955,-460.0,0.00022465,2]
[367153922,1750675853965,-460.0,0.00022465,2]
[367153923,1750675853974,-460.0,0.00022465,2]
[367153924,1750675853985,-460.0,0.00022465,2]
[367153925,1750675853995,-1387.98,0.00022465,2]
[367153926,1750675854005,-891.14,0.00022465,2]
[367153927,1750675854014,-460.0,0.00022465,2]
[367153928,1750675854024,-798.71532934,0.00022465,2]
[367153929,1750675854033,-658.88,0.00022465,2]
[367153930,1750675854042,-574.58,0.00022465,2]
[367153931,1750675854052,-462.74646412,0.00022465,2]
[367153932,1750675854063,-330.36920785,0.00022465,2]
[367153933,1750675854072,-1197.71,0.00022465,2]
[367153934,1750675854086,-460.0,0.00022465,2]
[367153935,1750675854095,-460.0,0.00022465,2]
[367153936,1750675854105,-460.0,0.00022465,2]
[367153937,1750675854114,-460.0,0.00022465,2]
[367153938,1750675854125,-151.0,0.00022465,7]
[367153939,1750675854134,-460.0,0.00022465,2]
[367153940,1750675854144,-460.0,0.00022465,2]
[367153941,1750675854154,-460.0,0.00022465,2]
[367153942,1750675854164,-460.0,0.00022465,2]
[367153943,1750675854174,-460.0,0.00022465,2]
[367153944,1750675854183,-460.0,0.00022465,2]
[367153945,1750675854192,-460.0,0.00022465,2]
[367153946,1750675854201,-460.0,0.00022465,2]
[367153947,1750675854210,-291.12708041,0.00022465,2]
[367153948,1750675854219,-464.34,0.00022465,2]
[367153949,1750675854229,-460.0,0.00022465,2]
[367153950,1750675854238,-665.08,0.00022465,2]
[367153951,1750675854247,-460.0,0.00022465,2]
[367153952,1750675854257,-460.0,0.00022465,2]
[367153953,1750675854266,-460.0,0.00022465,2]
[367153954,1750675854275,-670.77,0.00022465,2]
[367153955,1750675854284,-707.06,0.00022465,2]
[367153956,1750675854293,-460.0,0.00022465,2]
[367153957,1750675854302,-460.0,0.00022465,2]
[367153958,1750675854311,-270.32496706,0.00022465,2]
[367153959,1750675854320,-460.0,0.00022465,2]
[367153960,1750675854329,-460.0,0.00022465,2]
[367153961,1750675854339,-460.0,0.00022465,2]
[367153962,1750675854348,-460.0,0.00022465,2]
[367153963,1750675854357,-901.51,0.00022465,2]
[367153964,1750675854367,-466.82,0.00022465,2]
[367153965,1750675854376,-520.11,0.00022465,2]
[367153966,1750675854385,-460.0,0.00022465,2]
[367153967,1750675854395,-258.91941248,0.00022465,2]
[367153968,1750675854404,-637.45,0.00022465,2]
[367153969,1750675854413,-460.0,0.00022465,2]
[367153970,1750675854422,-460.0,0.00022465,2]
[367153971,1750675854432,-460.0,0.00022465,2]
[367153972,1750675854441,-460.0,0.00022465,2]
[367153973,1750675854450,-460.0,0.00022465,2]
[367153974,1750675854460,-460.0,0.00022465,2]
[367153975,1750675854469,-799.45,0.00022465,2]
[367153976,1750675854479,-460.0,0.00022465,2]
[367153977,1750675854488,-460.0,0.00022465,2]
[367153978,1750675854498,-460.0,0.00022465,2]
[367153979,1750675854507,-460.0,0.00022465,2]
[367153980,1750675854516,-460.0,0.00022465,2]
[367153981,1750675854525,-460.0,0.00022465,2]
[367153982,1750675854535,-460.0,0.00022465,2]
[367153983,1750675854545,-486.13,0.00022465,2]
[367153984,1750675854555,-460.0,0.00022465,2]
[367153985,1750675854564,-460.0,0.00022465,2]
[367153986,1750675854574,-436.13035792,0.00022465,2]
[367153987,1750675854584,-430.0,0.00022465,2]
[367153988,1750675854594,-460.0,0.00022465,2]
[367153989,1750675854604,-1165.35,0.00022465,2]
[367153990,1750675854614,-460.0,0.00022465,2]
[367153991,1750675854623,-551.71,0.00022465,2]
[367153992,1750675854634,-371.28670444,0.00022465,2]
[367153993,1750675854644,-460.0,0.00022465,2]
[367153994,1750675854653,-460.0,0.00022465,2]
[367153995,1750675854663,-560.37404418,0.00022465,2]
[367153996,1750675854673,-460.0,0.00022465,2]
[367153997,1750675854682,-460.0,0.00022465,2]
[367153998,1750675854692,-293.32384719,0.00022465,2]
[367153999,1750675854702,-460.0,0.00022465,2]
[367154000,1750675854711,-460.0,0.00022465,2]
[367154001,1750675854721,-432.221883,0.00022465,2]
[367154002,1750675854732,-300.0,0.00022465,2]
[367154003,1750675854741,-358.90713673,0.00022465,2]
[367154004,1750675854751,-473.16,0.00022465,2]
[367154005,1750675854760,-460.0,0.00022465,2]
[367154006,1750675854770,-348.09956784,0.00022465,2]
[367154007,1750675854780,-713.77,0.00022465,2]
[367154008,1750675854789,-460.0,0.00022465,2]
[367154009,1750675854799,-460.0,0.00022465,2]
[367154010,1750675854809,-151.0,0.00022465,7]
[367154011,1750675854819,-151.0,0.00022465,7]
[367154012,1750675854829,-151.0,0.00022465,7]
[367154013,1750675854839,-524.47,0.00022465,2]
[367154014,1750675854848,-460.0,0.00022465,2]
[367154015,1750675854858,-460.0,0.00022465,2]
[367154016,1750675854870,-460.0,0.00022465,2]
[367154017,1750675854879,-460.0,0.00022465,2]
[367154018,1750675854889,-2656.19,0.00022465,2]
[367154019,1750675854900,-460.0,0.00022465,2]
[367154020,1750675854911,-848.28,0.00022465,2]
[367154021,1750675854921,-460.0,0.00022465,2]
[367154022,1750675854931,-460.0,0.00022465,2]
[367154023,1750675854942,-438.70732351,0.00022465,2]
[367154024,1750675854952,-246.23221673,0.00022465,2]
[367154025,1750675854963,-460.0,0.00022465,2]
[367154026,1750675854974,-197.45688528,0.00022465,2]
[367154027,1750675854984,-460.0,0.00022465,2]
[367154028,1750675854994,-630.35,0.00022465,2]
[367154029,1750675855004,-816.62,0.00022465,2]
[367154030,1750675855015,-920.04,0.00022465,2]
[367154031,1750675855027,-872.8,0.00022465,2]
[367154032,1750675855037,-460.0,0.00022465,2]
[367154033,1750675855197,-460.0,0.00022465,2]
[367154034,1750675855207,-574.24,0.00022465,2]
[367154035,1750675855217,-460.0,0.00022465,2]
[367154036,1750675855226,-1006.82,0.00022465,2]
[367154037,1750675855236,-523.43,0.00022465,2]
[367154038,1750675855245,-523.16,0.00022465,2]
[367154039,1750675855254,-460.0,0.00022465,2]
[367154040,1750675855263,-672.92,0.00022465,2]
[367154041,1750675855273,-460.0,0.00022465,2]
[367154042,1750675855282,-460.0,0.00022465,2]
[367154043,1750675855291,-460.0,0.00022465,2]
[367154044,1750675855300,-3216.98,0.00022465,2]
[367154045,1750675855310,-312.96308561,0.00022465,2]
[367154046,1750675855319,-702.9,0.00022465,2]
[367154047,1750675855328,-179.11155793,0.00022465,2]
[367154048,1750675855338,-460.0,0.00022465,2]
[367154049,1750675855347,-1122.39,0.00022465,2]
[367154050,1750675855356,-460.0,0.00022465,2]
[367154051,1750675855366,-247.83973331,0.00022465,2]
[367154052,1750675855375,-2513.19,0.00022465,2]
[367154053,1750675855384,-588.22,0.00022465,2]
[367154054,1750675855394,-1032.73,0.00022465,2]
[367154055,1750675855402,-460.0,0.00022465,2]
[367154056,1750675855412,-460.0,0.00022465,2]
[367154057,1750675855421,-460.0,0.00022465,2]
[367154058,1750675855431,-460.0,0.00022465,2]
[367154059,1750675855440,-1413.62,0.00022465,2]
[367154060,1750675855450,-622.26,0.00022465,2]
[367154061,1750675855460,-460.0,0.00022465,2]
[367154062,1750675855470,-996.39,0.00022465,2]
[367154063,1750675855479,-460.0,0.00022465,2]
[367154064,1750675855489,-460.0,0.00022465,2]
[367154065,1750675855499,-460.0,0.00022465,2]
[367154066,1750675855509,-523.84,0.00022465,2]
[367154067,1750675855519,-501.6,0.00022465,2]
[367154068,1750675855530,-460.0,0.00022465,2]
[367154069,1750675855539,-460.0,0.00022465,2]
[367154070,1750675855549,-460.0,0.00022465,2]
[367154071,1750675855559,-460.0,0.00022465,2]
[367154072,1750675855568,-460.0,0.00022465,2]
[367154073,1750675855577,-460.0,0.00022465,2]
[367154074,1750675855586,-460.0,0.00022465,2]
[367154075,1750675855595,-460.0,0.00022465,2]
[367154076,1750675855605,-460.0,0.00022465,2]
[367154077,1750675855615,-754.95,0.00022465,2]
[367154078,1750675855624,-460.0,0.00022465,2]
[367154079,1750675855634,-635.52,0.00022465,2]
[367154080,1750675855643,-692.91,0.00022465,2]
[367154081,1750675855652,-460.0,0.00022465,2]
[367154082,1750675855662,-460.0,0.00022465,2]
[367154083,1750675855671,-460.0,0.00022465,2]
[367154084,1750675855680,-504.94,0.00022465,2]
[367154085,1750675855690,-460.0,0.00022465,2]
[367154086,1750675855700,-460.0,0.00022465,2]
[367154087,1750675855709,-1076.0,0.00022465,2]
[367154088,1750675855719,-460.0,0.00022465,2]
[367154089,1750675855728,-460.0,0.00022465,2]
[367154090,1750675855739,-1042.97,0.00022465,2]
[367154091,1750675855749,-460.0,0.00022465,2]
[367154092,1750675855758,-460.0,0.00022465,2]
[367154093,1750675855768,-460.0,0.00022465,2]
[367154094,1750675855777,-460.0,0.00022465,2]
[367154095,1750675855787,-248.68032028,0.00022465,2]
[367154096,1750675856190,-1210.13,0.00021907,10]
[367154097,1750675856199,-460.0,0.00021917,2]
[367154098,1750675856209,-460.0,0.00021917,2]
[367154099,1750675856219,-460.0,0.00021917,2]
[367154100,1750675856229,-151.603948,0.00021917,2]
[367154101,1750675856237,-460.0,0.00021917,2]
[367154102,1750675856247,-211.31967972,0.00022465,2]
[367154103,1750675856256,-542.96702428,0.00022465,2]
[367154105,1750675873505,150.0,0.00022502,30]
[367154107,1750675952634,150.0,0.00022577,30]
[367154108,1750676032970,150.0,0.00022563,30]
[367154109,1750676122933,150.0,0.00022558,30]
[367154112,1750676205138,150.0,0.00022567,30]
[367154127,1750676284699,150.0,0.00021868,30]
[367154128,1750676285096,150.0,0.00023857,30]
[367154130,1750676364275,150.0,0.00021885,30]
[367154131,1750676364698,150.0,0.00023875,30]
[367154133,1750676443898,150.0,0.0002265,30]
[367154135,1750676513993,175.067502,0.00013699,2]
[367154137,1750676523643,150.0,0.00022497,30]
[367154139,1750676601850,150.0,0.00022549,30]
[367154143,1750676680732,150.0,0.00021607,30]
[367154144,1750676681165,150.0,0.00023572,30]
[367154149,1750676762093,150.0,0.00021621,30]
[367154150,1750676762547,150.0,0.00023587,30]
[367154152,1750676797456,-174.9024415,0.00019341,2]
[367154153,1750676808733,-151.0,0.00019341,2]
[367154154,1750676841766,150.0,0.00021547,30]
[367154155,1750676842153,150.0,0.00023506,30]
[367154156,1750676843118,-4674.0975585,0.00019341,2]
[367154157,1750676843139,-186.729592,0.00019383,2]
[367154158,1750676843159,-1126.99532539,0.00019636,2]
[367154159,1750676844411,-150.0,0.00019536,2]
[367154160,1750676844434,-1.79122762,0.00019636,2]
[367154167,1750676919891,150.0,0.00021549,30]
[367154168,1750676920286,150.0,0.00023509,30]
[367154172,1750676946106,-5000.0,0.00019439,2]
[367154173,1750676946126,-1264.79723349,0.00019636,2]
[367154175,1750676957719,137.82829057,0.00019986,2]
[367154177,1750676959090,-1704.16047375,0.00019986,2]
[367154178,1750676959113,-175.067502,0.00020187,2]
[367154181,1750676977987,174.9024415,0.00020259,2]
[367154183,1750676991183,21.06429542,0.00019557,2]
[367154185,1750677000739,150.0,0.00021548,30]
[367154186,1750677001150,150.0,0.00023507,30]
[367154206,1750677032156,-144.66378358,0.00019557,2]
[367154207,1750677032167,-267.0,0.00020351,2]
[367154208,1750677032177,-852.8251448,0.00020355,2]
[367154209,1750677032187,-300.0,0.00020364,2]
[367154210,1750677032197,-300.0,0.00020399,2]
[367154211,1750677032208,-300.0,0.00020399,2]
[367154212,1750677032218,-1200.0,0.00020399,2]
[367154213,1750677032228,-257.05107162,0.000204,3]
[367154217,1750677032288,-35148.54391903,0.000204,3]
[367154220,1750677032310,-2850.90980183,0.000204,3]
[367154273,1750677038234,-127.34868374,0.00020399,2]
[367154276,1750677038254,-372.65131626,0.00020399,2]
[367154278,1750677038263,-162.09041682,0.00020399,2]
[367154280,1750677038272,-538.99832071,0.00020399,2]
[367154282,1750677038282,-500.0,0.00020399,2]
[367154284,1750677038292,-587.44817276,0.00020399,2]
[367154286,1750677038302,-9162.91713071,0.000204,3]
[367154474,1750677040375,-603.519,0.000204,3]
[367154475,1750677040387,-1554.57737935,0.000204,3]
[367154477,1750677040399,-824.95454347,0.000204,3]
[367154479,1750677040410,-344.44552295,0.000204,3]
[367154757,1750677043321,-3105.38477854,0.000204,3]
[367154758,1750677043335,-500.0,0.00020423,2]
[367154759,1750677043344,-361.49624488,0.00020423,2]
[367154760,1750677043355,-500.0,0.00020423,2]
[367154761,1750677043364,-500.0,0.00020423,2]
[367154762,1750677043374,-500.0,0.00020423,2]
[367154763,1750677043384,-500.0,0.00020423,2]
[367154764,1750677043394,-500.0,0.00020423,2]
[367154765,1750677043403,-229.6560186,0.00020423,2]
[367154766,1750677043412,-500.0,0.00020423,2]
[367154767,1750677043422,-500.0,0.00020423,2]
[367154768,1750677043432,-500.0,0.00020423,2]
[367154769,1750677043441,-500.0,0.00020423,2]
[367154770,1750677043451,-500.0,0.00020423,2]
[367154771,1750677043461,-28957.43891533,0.00020424,2]
[367154774,1750677043491,-312.08465677,0.00020424,2]
[367154776,1750677043500,-684.77738855,0.00020425,2]
[367155044,1750677046144,-2356.251372,0.00020425,2]
[367155061,1750677046306,-21858.97123945,0.00020425,2]
[367155063,1750677046316,-267.0,0.00020491,2]
[367155065,1750677046327,-162.7041386,0.0002093,2]
[367155067,1750677046337,-390.6090662,0.00020951,2]
[367155069,1750677046347,-350.0,0.00021021,2]
[367155071,1750677046356,-267.0,0.00021021,2]
[367155074,1750677046366,-207.4,0.00021162,2]
[367155075,1750677046376,-267.0,0.00021208,2]
[367155078,1750677046386,-267.0,0.0002124,2]
[367155080,1750677046395,-175.785,0.00021634,2]
[367155082,1750677046404,-267.0,0.00021642,2]
[367155084,1750677046414,-267.0,0.00021692,2]
[367155086,1750677046423,-267.0,0.00021706,2]
[367155088,1750677046433,-166.35014462,0.00021757,2]
[367155090,1750677046442,-288.5477242,0.00021817,2]
[367155092,1750677046452,-394.05597777,0.00021852,2]
[367155094,1750677046461,-705.85,0.00021907,10]
[367155096,1750677046471,-160.0,0.00021916,2]
[367155098,1750677046481,-480.46248933,0.00021917,2]
[367155100,1750677046491,-460.0,0.00021917,2]
[367155102,1750677046500,-460.0,0.00021917,2]
[367155104,1750677046509,-460.0,0.00021917,2]
[367155106,1750677046519,-460.0,0.00021917,2]
[367155108,1750677046529,-460.0,0.00021917,2]
[367155110,1750677046538,-460.0,0.00021917,2]
[367155112,1750677046547,-460.0,0.00021917,2]
[367155114,1750677046559,-460.0,0.00021917,2]
[367155116,1750677046569,-460.0,0.00021917,2]
[367155118,1750677046578,-460.0,0.00021917,2]
[367155120,1750677046587,-300.0,0.00021917,2]
[367155122,1750677046596,-460.0,0.00021917,2]
[367155124,1750677046606,-482.77,0.00021917,2]
[367155126,1750677046615,-460.0,0.00021917,2]
[367155128,1750677046624,-460.0,0.00021917,2]
[367155130,1750677046634,-460.0,0.00021917,2]
[367155132,1750677046648,-460.0,0.00021917,2]
[367155134,1750677046657,-317.29394324,0.00021917,2]
[367155136,1750677046667,-460.0,0.00021917,2]
[367155138,1750677046676,-460.0,0.00021917,2]
[367155140,1750677046686,-460.0,0.00021917,2]
[367155142,1750677046696,-460.0,0.00021917,2]
[367155144,1750677046705,-460.0,0.00021917,2]
[367155146,1750677046715,-460.0,0.00021917,2]
[367155148,1750677046725,-460.0,0.00021917,2]
[367155150,1750677046734,-460.0,0.00021917,2]
[367155153,1750677046744,-502.08,0.00021917,2]
[367155155,1750677046754,-460.0,0.00021917,2]
[367155157,1750677046764,-460.0,0.00021917,2]
[367155159,1750677046774,-358.63795307,0.00021917,2]
[367155161,1750677046783,-460.0,0.00021917,2]
[367155163,1750677046793,-460.0,0.00021917,2]
[367155165,1750677046803,-545.12256686,0.00021917,2]
[367155168,1750677046821,-460.0,0.00021917,2]
[367155170,1750677046834,-460.0,0.00021917,2]
[367155172,1750677046844,-460.0,0.00021917,2]
[367155174,1750677046854,-460.0,0.00021917,2]
[367155176,1750677046863,-460.0,0.00021917,2]
[367155178,1750677046873,-460.0,0.00021917,2]
[367155180,1750677046883,-335.76765779,0.00021917,2]
[367155182,1750677046893,-460.0,0.00021917,2]
[367155184,1750677046902,-1271.5,0.00021917,2]
[367155186,1750677046912,-460.0,0.00021917,2]
[367155188,1750677046921,-460.0,0.00021917,2]
[367155190,1750677046931,-460.0,0.00021917,2]
[367155192,1750677046941,-798.92,0.00021917,2]
[367155194,1750677046951,-460.0,0.00021917,2]
[367155196,1750677046960,-460.0,0.00021917,2]
[367155199,1750677046970,-460.0,0.00021917,2]
[367155201,1750677046979,-460.0,0.00021917,2]
[367155203,1750677046989,-460.0,0.00021917,2]
[367155205,1750677046999,-460.0,0.00021917,2]
[367155207,1750677047008,-460.0,0.00021917,2]
[367155209,1750677047018,-460.0,0.00021917,2]
[367155210,1750677047027,-695.16,0.00021917,2]
[367155212,1750677047037,-460.0,0.00021917,2]
[367155215,1750677047048,-460.0,0.00021917,2]
[367155217,1750677047058,-460.0,0.00021917,2]
[367155219,1750677047068,-460.0,0.00021917,2]
[367155221,1750677047077,-571.44,0.00021917,2]
[367155223,1750677047086,-547.28,0.00021917,2]
[367155225,1750677047096,-460.0,0.00021917,2]
[367155227,1750677047105,-460.0,0.00021917,2]
[367155229,1750677047115,-1131.3,0.00021917,2]
[367155231,1750677047124,-460.0,0.00021917,2]
[367155233,1750677047134,-460.0,0.00021917,2]
[367155235,1750677047143,-460.0,0.00021917,2]
[367155237,1750677047153,-460.0,0.00021917,2]
[367155239,1750677047163,-460.0,0.00021917,2]
[367155241,1750677047173,-460.0,0.00021917,2]
[367155243,1750677047183,-683.79,0.00021917,2]
[367155246,1750677047193,-460.0,0.00021917,2]
[367155248,1750677047204,-460.0,0.00021917,2]
[367155250,1750677047213,-460.0,0.00021917,2]
[367155252,1750677047223,-460.0,0.00021917,2]
[367155254,1750677047232,-477.55,0.00021917,2]
[367155256,1750677047241,-460.0,0.00021917,2]
[367155258,1750677047258,-460.0,0.00021917,2]
[367155260,1750677047275,-460.0,0.00021917,2]
[367155262,1750677047284,-460.0,0.00021917,2]
[367155264,1750677047294,-460.0,0.00021917,2]
[367155266,1750677047303,-460.0,0.00021917,2]
[367155268,1750677047313,-460.0,0.00021917,2]
[367155270,1750677047322,-460.0,0.00021917,2]
[367155272,1750677047332,-460.0,0.00021917,2]
[367155274,1750677047341,-429.04169078,0.00021917,2]
[367155276,1750677047351,-460.0,0.00021917,2]
[367155278,1750677047361,-460.0,0.00021917,2]
[367155280,1750677047371,-460.0,0.00021917,2]
[367155282,1750677047380,-480.58439964,0.00021917,2]
[367155285,1750677047391,-460.0,0.00021917,2]
[367155287,1750677047400,-460.0,0.00021917,2]
[367155289,1750677047410,-460.0,0.00021917,2]
[367155291,1750677047419,-460.52266667,0.00021917,2]
[367155293,1750677047429,-460.0,0.00021917,2]
[367155295,1750677047439,-460.0,0.00021917,2]
[367155297,1750677047448,-434.8146663,0.00021917,2]
[367155299,1750677047458,-460.0,0.00021917,2]
[367155301,1750677047467,-460.0,0.00021917,2]
[367155303,1750677047477,-460.0,0.00021917,2]
[367155305,1750677047486,-460.0,0.00021917,2]
[367155307,1750677047496,-150.67399097,0.00021917,2]
[367155309,1750677047506,-460.0,0.00021917,2]
[367155311,1750677047516,-460.0,0.00021917,2]
[367155313,1750677047528,-460.0,0.00021917,2]
[367155315,1750677047538,-460.0,0.00021917,2]
[367155317,1750677047548,-460.0,0.00021917,2]
[367155319,1750677047558,-460.0,0.00021917,2]
[367155321,1750677047570,-460.0,0.00021917,2]
[367155323,1750677047580,-460.0,0.00021917,2]
[367155326,1750677047590,-460.0,0.00021917,2]
[367155328,1750677047600,-460.0,0.00021917,2]
[367155330,1750677047609,-460.0,0.00021917,2]
[367155332,1750677047619,-460.0,0.00021917,2]
[367155334,1750677047629,-460.0,0.00021917,2]
[367155336,1750677047643,-460.0,0.00021917,2]
[367155338,1750677047653,-460.0,0.00021917,2]
[367155340,1750677047663,-460.0,0.00021917,2]
[367155342,1750677047672,-460.0,0.00021917,2]
[367155344,1750677047682,-460.0,0.00021917,2]
[367155346,1750677047691,-460.0,0.00021917,2]
[367155348,1750677047702,-460.0,0.00021917,2]
[367155350,1750677047712,-182.75399511,0.00021917,2]
[367155353,1750677047722,-460.0,0.00021917,2]
[367155355,1750677047731,-417.87977399,0.00021917,2]
[367155357,1750677047741,-608.11266463,0.00021917,2]
[367155359,1750677047750,-694.83,0.00021917,2]
[367155385,1750677047986,-460.0,0.00021917,2]
[367155387,1750677047995,-460.0,0.00021917,2]
[367155389,1750677048006,-460.0,0.00021917,2]
[367155391,1750677048015,-460.0,0.00021917,2]
[367155393,1750677048025,-460.0,0.00021917,2]
[367155395,1750677048035,-460.0,0.00021917,2]
[367155397,1750677048045,-460.0,0.00021917,2]
[367155399,1750677048054,-551.33074097,0.00021917,2]
[367155401,1750677048064,-460.0,0.00021917,2]
[367155403,1750677048073,-460.0,0.00021917,2]
[367155405,1750677048083,-460.0,0.00021917,2]
[367155408,1750677048094,-460.0,0.00021917,2]
[367155410,1750677048104,-460.0,0.00021917,2]
[367155412,1750677048113,-586.15,0.00021917,2]
[367155414,1750677048123,-460.0,0.00021917,2]
[367155415,1750677048132,-460.0,0.00021917,2]
[367155418,1750677048142,-460.0,0.00021917,2]
[367155420,1750677048152,-460.0,0.00021917,2]
[367155422,1750677048161,-460.0,0.00021917,2]
[367155424,1750677048171,-1352.42,0.00021917,2]
[367155426,1750677048180,-460.0,0.00021917,2]
[367155428,1750677048190,-805.03,0.00021917,2]
[367155430,1750677048199,-460.0,0.00021917,2]
[367155432,1750677048208,-523.35617931,0.00021917,2]
[367155434,1750677048218,-460.0,0.00021917,2]
[367155436,1750677048227,-500.0,0.00021917,2]
[367155438,1750677048237,-500.0,0.00021917,2]
[367155440,1750677048246,-500.0,0.00021917,2]
[367155442,1750677048256,-956.37,0.00021917,2]
[367155444,1750677048265,-551.56,0.00021917,2]
[367155446,1750677048276,-460.0,0.00021917,2]
[367155448,1750677048286,-460.0,0.00021917,2]
[367155450,1750677048296,-880.97,0.00021917,2]
[367155452,1750677048305,-460.0,0.00021917,2]
[367155454,1750677048316,-502.46,0.00021917,2]
[367155456,1750677048326,-460.0,0.00021917,2]
[367155458,1750677048335,-460.0,0.00021917,2]
[367155460,1750677048344,-460.0,0.00021917,2]
[367155462,1750677048353,-460.0,0.00021917,2]
[367155465,1750677048363,-460.0,0.00021917,2]
[367155466,1750677048373,-460.48002916,0.00021917,2]
[367155468,1750677048382,-460.0,0.00021917,2]
[367155470,1750677048392,-460.0,0.00021917,2]
[367155473,1750677048404,-460.0,0.00021917,2]
[367155475,1750677048414,-460.0,0.00021917,2]
[367155477,1750677048424,-460.0,0.00021917,2]
[367155479,1750677048435,-460.0,0.00021917,2]
[367155481,1750677048445,-479.81,0.00021917,2]
[367155483,1750677048461,-460.0,0.00021917,2]
[367155485,1750677048473,-460.0,0.00021917,2]
[367155487,1750677048483,-460.0,0.00021917,2]
[367155489,1750677048493,-460.0,0.00021917,2]
[367155491,1750677048503,-460.0,0.00021917,2]
[367155493,1750677048516,-460.0,0.00021917,2]
[367155495,1750677048526,-488.53641425,0.00021917,2]
[367155497,1750677048536,-460.0,0.00021917,2]
[367155499,1750677048545,-460.0,0.00021917,2]
[367155501,1750677048555,-1073.09,0.00021917,2]
[367155503,1750677048565,-588.8,0.00021917,2]
[367155505,1750677048574,-460.0,0.00021917,2]
[367155507,1750677048584,-355.50658395,0.00021917,2]
[367155509,1750677048594,-346.74669501,0.00021917,2]
[367155511,1750677048603,-460.0,0.00021917,2]
[367155513,1750677048612,-460.0,0.00021917,2]
[367155515,1750677048622,-480.19,0.00021917,2]
[367155517,1750677048631,-460.0,0.00021917,2]
[367155519,1750677048646,-460.0,0.00021917,2]
[367155521,1750677048655,-2349.96,0.00021917,2]
[367155523,1750677048664,-460.0,0.00021917,2]
[367155525,1750677048674,-460.0,0.00021917,2]
[367155528,1750677048685,-2814.86,0.00021917,2]
[367155530,1750677048695,-460.0,0.00021917,2]
[367155532,1750677048705,-460.0,0.00021917,2]
[367155534,1750677048714,-460.0,0.00021917,2]
[367155536,1750677048725,-460.0,0.00021917,2]
[367155537,1750677048734,-460.0,0.00021917,2]
[367155539,1750677048744,-460.0,0.00021917,2]
[367155541,1750677048754,-460.0,0.00021917,2]
[367155544,1750677048764,-460.0,0.00021917,2]